[Event "Reykjavik Open 2024"]
[Site "Reykjavik"]
[Date "2024.03.17"]
[Round "4.8"]
[White "Xu, Xiangyu"]
[Black "Jin, Yueheng"]
[Result "1/2-1/2"]
[ECO "D37"]
[WhiteElo "2623"]
[BlackElo "2404"]
[Annotator "TA"]
[PlyCount "116"]
[EventDate "2024.03.12"]
[EventCountry "ISL"]
[SourceTitle "playchess.com"]
[Source "ChessBase"]
[SourceQuality "1"]
[TimeControl "40/5400+30:1800+30"]

{[%evp 19,116,32,35,30,21,18,25,21,30,31,17,25,32,0,0,10,61,52,52,53,55,51,58,64,58,45,60,59,72,38,45,49,64,63,62,48,52,47,43,54,56,59,62,54,75,62,63,63,87,50,50,38,89,37,81,50,72,44,72,37,81,25,77,77,77,76,76,76,86,69,69,67,100,100,133,133,133,133,133,133,133,131,133,133,133,133,133,133,133,133,133,133,133,133,133,133,133,0,0]} 1. d4 {[%emt 0:01:43]} d5 {[%emt 0:00:04]} 2. c4 {[%emt 0:00:08]} e6 {[%emt 0:00:04]} 3. Nc3 {[%emt 0:00:15]} Nf6 {[%emt 0:00:06]} 4. Nf3 {[%emt 0:01:35]} Be7 {[%emt 0:00:08]} 5. Bf4 {[%emt 0:00:52]} O-O {[%emt 0:00:13]} 6. e3 {[%emt 0:00:05]} c5 {[%emt 0:00:06]} 7. dxc5 {[%emt 0:00:04]} Bxc5 {[%emt 0:00:08]} 8. a3 {[%emt 0:00:08]} Nc6 {[%emt 0:00:25]} 9. Qc2 {[%emt 0:00:13]} Qa5 {[%emt 0:00:07]} 10. Rd1 {[%emt 0:01:53]} Be7 {[%emt 0:00:09]} 11. Be2 {[%emt 0:06:35]} Ne4 {[%emt 0:00:09]} 12. cxd5 {[%emt 0:00:17]} Nxc3 {[%emt 0:00:06]} 13. Qxc3 {[%emt 0:00:10] Weiß hat minimalen Vorteil.} (13. bxc3 {hält die Spannung aufrecht.} exd5 14. O-O Rd8 15. Nd4) 13... Qxc3+ {[%emt 0:00:16]} 14. bxc3 {[%emt 0:00:05]} exd5 {[%emt 0:00:03]} 15. Rxd5 {[%emt 0:00:09]} Bxa3 {[%emt 0:01:32]} 16. Kd2 {[%emt 0:00:10]} b6 {[%emt 0:08:53][%cal Bb7b6,Bb6c5,Bc5d4,Bd4c3][%mdl 32]} 17. Ra1 {[%emt 0:31:21]} Bc5 {[%emt 0:02:44]} ({Besser ist} 17... Be6 $11 18. Rb5 Bc5) 18. Nd4 $14 {[%emt 0:00:36] Weiß steht deutlich aktiver. Die schwarzen Türme stehen passiv.} Ne7 {[%emt 0:00:31] [#]} 19. Rxc5 {[%emt 0:01:00]} bxc5 {[%emt 0:00:10]} 20. Bf3 {[%emt 0:00:06]} cxd4 {[%emt 0:12:03]} 21. Bxa8 {[%emt 0:00:10] Ein starkes Läuferpaar.} dxc3+ {[%emt 0:00:04]} 22. Kc1 {[%emt 0:03:22]} Be6 {[%emt 0:34:12]} 23. Rxa7 {[%emt 0:00:11][%cal Of4d6]} Nd5 {[%emt 0:00:17]} 24. Be5 {[%emt 0:02:12]} Rd8 {[%emt 0:05:37]} 25. Bd4 {[%emt 0:06:41]} Nf4 {[%emt 0:14:56]} 26. Kc2 {[%emt 0:03:18]} Ne2 {[%emt 0:00:08] Droht ...Bf5+ und aus.} 27. Bxc3 {[%emt 0:02:53] Zielt auf Ba5 ab.} Rc8 {[%emt 0:02:02] [#]} 28. Bb7 $1 {[%emt 0:00:20]} Rxc3+ {[%emt 0:00:04]} 29. Kd2 {[%emt 0:00:07] Und Ra8+ würde nun gewinnen.} g6 {[%emt 0:04:24][%cal Oc3c7]} 30. Kxe2 {[%emt 0:00:52][%mdl 4096] Endspiel. KRB-KRB} Rc2+ {[%emt 0:00:13]} 31. Ke1 $1 {[%emt 0:00:16]} Kg7 {[%emt 0:01:08]} 32. Be4 {[%emt 0:01:37]} Rb2 {[%emt 0:00:26]} 33. Bd3 {[%emt 0:00:27]} h5 {[%emt 0:01:11]} 34. Rc7 {[%emt 0:00:49]} Ra2 {[%emt 0:01:32]} 35. Rc1 {[%emt 0:02:04]} Kf6 {[%emt 0:00:51]} (35... h4 $14) 36. Bc2 {[%emt 0:00:22]} (36. h4 $16) 36... Ke5 {[%emt 0:02:00]} 37. Kf1 {[%emt 0:00:46]} Rb2 {[%emt 0:00:52]} 38. h3 {[%emt 0:01:08]} Kf6 {[%emt 0:01:54]} 39. Kg1 {[%emt 0:00:24]} Bd5 {[%emt 0:00:32]} 40. Kh2 {[%emt 0:00:18]} ({Günstiger ist} 40. h4 $16) 40... Bb3 {[%emt 0:02:28]} (40... Be6 $11) 41. Bxb3 $16 {[%emt 0:30:50]} Rxb3 {[%emt 0:30:02] KR-KR} 42. Rc4 {[%emt 0:00:08]} Rb2 {[%emt 0:00:21]} 43. Kg3 {[%emt 0:00:05]} Ke6 {[%emt 0:00:22]} 44. f4 {[%emt 0:01:00]} Rb5 {[%emt 0:01:47]} 45. Kh4 {[%emt 0:00:45]} Rb2 {[%emt 0:00:07]} 46. g3 {[%emt 0:01:24]} Rb3 {[%emt 0:03:04]} 47. e4 {[%emt 0:00:13][%cal Be3e4,Be4e5][%mdl 32]} Kf6 {[%emt 0:00:00]} 48. Rc7 {[%emt 0:00:00]} Re3 {[%emt 0:00:00]} 49. e5+ {[%emt 0:00:00]} Kg7 {[%emt 0:00:00]} 50. Ra7 {[%emt 0:00:00]} Re1 {[%emt 0:00:00]} 51. Re7 {[%emt 0:00:00]} Kf8 {[%emt 0:00:00]} 52. Rd7 {[%emt 0:00:00]} Kg7 {[%emt 0:00:00]} 53. Kg5 {[%emt 0:00:00]} Re3 {[%emt 0:00:00]} 54. g4 {[%emt 0:00:00]} hxg4 {[%emt 0:00:00]} 55. hxg4 {[%emt 0:00:00]} Re1 {[%emt 0:00:00]} 56. Re7 {[%emt 0:00:00]} Re2 {[%emt 0:00:00]} 57. Re8 {[%emt 0:00:00]} Re4 {[%emt 0:00:00]} 58. f5 {[%emt 0:00:00]} (58. Rc8 $16) 58... Rxe5 {[%emt 0:00:00] Gewichteter Fehlerwert: Weiß=0.12 (sehr präzise) /Schwarz=0.11 (sehr präzise) .  Fehler:       	Weiß=3     	Schwarz=3     Ungenau:       	Weiß=5     	Schwarz=5     OK:         	Weiß=16    	Schwarz=15    Bester:       	Weiß=4     	Schwarz=1     Stark:        	Weiß=2     	---        Brilliant:      	Weiß=1     	---} 1/2-1/2

[Event "Reykjavik Open 2024"]
[Site "Reykjavik"]
[Date "2024.03.17"]
[Round "4.9"]
[White "Haldorsen, Benjamin"]
[Black "Moussard, Jules"]
[Result "0-1"]
[ECO "B51"]
[WhiteElo "2426"]
[BlackElo "2621"]
[Annotator "TA"]
[PlyCount "88"]
[EventDate "2024.03.12"]
[EventCountry "ISL"]
[SourceTitle "playchess.com"]
[Source "ChessBase"]
[SourceQuality "1"]
[TimeControl "40/5400+30:1800+30"]

{[%evp 9,88,8,16,11,26,31,37,29,45,33,76,35,43,25,25,25,18,5,28,-6,-8,-16,-10,-19,-5,-23,-22,-25,-17,-31,-20,-24,-25,-20,-5,-14,-16,-18,-21,-10,-16,-22,0,-57,-55,-52,-60,-95,-32,-32,-32,-32,-32,-40,-38,-27,-28,-28,-26,-18,0,-66,-66,-137,-136,-204,-106,-140,-156,-159,-37,-616,-620,-29993,-624,-615,-607,-5314,-4914,-29993,-29994]} 1. e4 {[%emt 0:00:04]} c5 {[%emt 0:07:34]} 2. Nf3 {[%emt 0:00:32]} d6 {[%emt 0:00:10]} 3. Bb5+ {[%emt 0:00:35]} Nd7 {[%emt 0:00:38]} 4. a4 {[%emt 0:00:30]} Ngf6 {[%emt 0:01:19]} 5. Nc3 {[%emt 0:00:48]} a6 {[%emt 0:00:39]} 6. Be2 {[%emt 0:01:03]} g6 {[%emt 0:01:03]} 7. a5 {[%emt 0:01:12]} b5 {[%emt 0:01:28]} 8. axb6 {[%emt 0:00:18] Weiß steht etwas besser.} Bb7 {[%emt 0:00:07]} 9. d3 {[%emt 0:00:58]} Bg7 {[%emt 0:00:31]} 10. O-O {[%emt 0:01:20]} Nxb6 {[%emt 0:01:16]} 11. Be3 {[%emt 0:15:44]} O-O {[%emt 0:02:38]} 12. h3 {[%emt 0:05:26]} Qc7 {[%emt 0:01:07]} 13. Qd2 {[%emt 0:03:18]} e5 {[%emt 0:01:55]} 14. Nh2 {[%emt 0:12:59]} (14. Bh6 {ist interessant.} d5 15. Bxg7 Kxg7 16. Qg5) 14... d5 {[%emt 0:09:57]} 15. exd5 {[%emt 0:00:59]} Nfxd5 {[%emt 0:00:59]} 16. Nxd5 {[%emt 0:03:31]} Nxd5 {[%emt 0:02:49]} 17. Bf3 {[%emt 0:01:13]} Nxe3 {[%emt 0:04:06]} 18. Qxe3 {[%emt 0:00:50]} c4 {[%emt 0:00:48]} 19. Ra2 {[%emt 0:06:19]} cxd3 {[%emt 0:01:50]} 20. cxd3 {[%emt 0:08:17]} Rfd8 {[%emt 0:03:11]} 21. Rfa1 {[%emt 0:05:43]} Qd7 {[%emt 0:05:38]} 22. Bxb7 {[%emt 0:00:31]} Qxb7 {[%emt 0:00:06]} 23. Nf3 {[%emt 0:00:08]} Qb5 {[%emt 0:01:41]} 24. Ra5 {[%emt 0:10:19]} Qxb2 {[%emt 0:01:42]} (24... Qxd3 {vereinfacht} 25. Qxd3 Rxd3 26. Nxe5 Rd4) 25. Nxe5 {[%emt 0:00:20]} Rac8 {[%emt 0:08:27]} (25... Bxe5 {vereinfacht} 26. Qxe5 Qxe5 27. Rxe5 Rxd3 28. Rea5 Rd6) 26. d4 {[%emt 0:04:24]} (26. Qf4 $11) 26... Qxd4 $15 {[%emt 0:10:11]} 27. Qxd4 {[%emt 0:00:49]} Rxd4 {[%emt 0:00:07]} 28. Nf3 {[%emt 0:00:10][%cal Be5f3,Bf3g1,Bg1e2][%mdl 32]} Rd3 {[%emt 0:00:51]} (28... Rdc4 $17 29. R1a2 Rc1+ 30. Kh2 R8c2 31. Rxc2 Rxc2) 29. R1a2 {[%emt 0:02:11]} Rc1+ {[%emt 0:03:33]} 30. Kh2 {[%emt 0:00:05]} Bh6 {[%emt 0:00:05] Droht ...Bf4+ und aus.} 31. Ng1 {[%emt 0:07:00]} Rdd1 {[%emt 0:00:05]} 32. Ne2 {[%emt 0:00:17]} Rh1+ {[%emt 0:01:55]} 33. Kg3 {[%emt 0:00:03]} Rcd1 {[%emt 0:02:25]} 34. Rxa6 {[%emt 0:05:29]} Bf8 {[%emt 0:00:10]} 35. Rc6 {[%emt 0:01:19]} (35. Nf4 $1 $11) 35... Bd6+ {[%emt 0:03:48]} 36. f4 {[%emt 0:01:05]} (36. Kf3 $1 $15) 36... Bb4 $1 $17 {[%emt 0:00:05] ( -> ...Rd3+)} 37. f5 {[%emt 0:01:37]} (37. Kf3 $17) 37... Rd3+ {[%emt 0:02:51]} (37... gxf5 38. Ra4 Rd3+ 39. Kf4 Rf1+ 40. Kg5 Be7+ 41. Kh6 $11) ({Vorzuziehen ist} 37... Rhf1 $1 $19 {[%cal Rf1f5]} 38. fxg6 hxg6) 38. Kf4 {[%emt 0:00:46]} Bd2+ {[%emt 0:02:20]} 39. Kg4 {[%emt 0:00:43] [#]} Rh2 {[%emt 0:06:56]} ({Günstiger ist} 39... gxf5+ $1 $17 40. Kh4 h6 41. Rxd2 Rxd2) 40. Ra8+ $2 {[%emt 0:01:02][%mdl 8192] Der Zug kostet die Partie für Weiß.} (40. Nf4 $15 Rd4 (40... h5+ 41. Kg5 $15) 41. g3) 40... Kg7 $19 {[%emt 0:00:03]} 41. f6+ {[%emt 0:09:26]} Kh6 {[%emt 0:00:38]} 42. Nf4 {[%emt 0:00:18]} Rd4 {[%emt 0:02:10][%csl LRf4,LRg2]} 43. g3 {[%emt 0:00:06]} Bxf4 {[%emt 0:00:43]} 44. gxf4 {[%emt 0:00:07] [#]} Rd3 $1 {[%emt 0:00:10] Gewichteter Fehlerwert: Weiß=0.66/Schwarz=0.14 (sehr präzise) .  Verlustzug:     	Weiß=1     	---        Fehler:       	Weiß=4     	Schwarz=3     Ungenau:       	Weiß=4     	Schwarz=1     OK:         	Weiß=8     	Schwarz=13    Bester:       	Weiß=4     	Schwarz=2     Stark:        	---       	Schwarz=1} 0-1

[Event "Reykjavik Open 2024"]
[Site "Reykjavik"]
[Date "2024.03.17"]
[Round "4.10"]
[White "Salimova, Nurgyul"]
[Black "Pultinevicius, Paulius"]
[Result "0-1"]
[ECO "A49"]
[WhiteElo "2426"]
[BlackElo "2575"]
[Annotator "TA"]
[PlyCount "76"]
[EventDate "2024.03.12"]
[EventCountry "ISL"]
[SourceTitle "playchess.com"]
[Source "ChessBase"]
[SourceQuality "1"]
[TimeControl "40/5400+30:1800+30"]

{[%evp 12,76,10,20,8,8,9,16,22,14,19,0,0,-7,-18,-22,-9,-57,-82,-82,-41,-31,-33,-115,-99,-103,-108,-101,-117,-118,-94,-81,-102,-111,-64,-74,-36,-168,-170,-175,-10,-10,0,0,0,-14,0,0,0,-13,-12,-11,-11,-22,0,0,0,-81,-81,-81,-81,-788,-787,-779,-718,-29990,-29991]} 1. d4 {[%emt 0:07:35]} Nf6 {[%emt 0:00:11]} 2. Nf3 {[%emt 0:00:19]} g6 {[%emt 0:00:07]} 3. g3 {[%emt 0:00:52]} Bg7 {[%emt 0:00:16]} 4. Bg2 {[%emt 0:00:11]} O-O {[%emt 0:00:08]} 5. O-O {[%emt 0:00:17]} d6 {[%emt 0:00:45]} 6. a4 {[%emt 0:01:46][%cal Ba2a4,Ba4a5][%mdl 32]} Nc6 {[%emt 0:02:56]} 7. a5 {[%emt 0:03:08]} e5 {[%emt 0:00:11]} 8. dxe5 {[%emt 0:01:34]} dxe5 {[%emt 0:00:07] [#]} 9. a6 $1 {[%emt 0:06:42]} Qe7 {[%emt 0:05:46] The position is equal.} (9... e4 10. Qxd8) 10. Bg5 {[%emt 0:03:33]} bxa6 {[%emt 0:07:21]} 11. Nfd2 {[%emt 0:08:04]} Qe6 {[%emt 0:02:20]} 12. c4 {[%emt 0:11:02]} Rb8 {[%emt 0:02:56]} 13. Nc3 {[%emt 0:16:21]} Rxb2 {[%emt 0:13:17]} 14. Nd5 {[%emt 0:00:43]} (14. Na4 $11 {feels stronger.} Rb8 15. Nc5) 14... Nxd5 $15 {[%emt 0:07:23]} 15. cxd5 {[%emt 0:02:44]} Qf5 {[%emt 0:01:07]} 16. h4 {[%emt 0:04:27]} Nd4 {[%emt 0:02:25] aiming for ...Qc2.} 17. e3 {[%emt 0:05:49]} (17. Rc1 $1 $15) 17... f6 $17 {[%emt 0:06:17]} 18. exd4 {[%emt 0:04:29]} fxg5 {[%emt 0:00:06]} 19. hxg5 {[%emt 0:00:54]} exd4 {[%emt 0:01:54][%cal Oc8b7]} 20. Ne4 {[%emt 0:00:46]} Kh8 {[%emt 0:03:53]} (20... Qxd5 $2 21. Nf6+ Kh8 22. Bxd5 $18 (22. Nxd5 Bf5 $18)) 21. Rc1 {[%emt 0:09:22]} Qxd5 {[%emt 0:04:21] ...d3 is the strong threat.} 22. Rxc7 {[%emt 0:00:50][%cal Od1c1] And now Qc1! would win.} Bb7 {[%emt 0:00:40]} (22... d3 23. Qc1 Rc2 24. Rxc2 dxc2 25. Qxc2 $11) (22... Bf5 $17 23. Qc1 (23. Nf6 $2 Qe5 $19) 23... Rbb8 (23... Bxe4 24. Bxe4 Qa2 25. Bb1 $11)) 23. Qc1 $15 {[%emt 0:02:33]} Re2 {[%emt 0:13:36]} (23... Rb5 $5) 24. Qb1 {[%emt 0:00:52]} ({White should play} 24. Re7 $15 Bc6 25. Rc7) 24... Ba8 $1 $19 {[%emt 0:05:02]} 25. Rxa7 {[%emt 0:00:17] [#]} Qe5 $2 {[%emt 0:01:29]} (25... Rxe4 26. Rxa8 Qxa8 27. Bxe4 $11) ({Better is} 25... d3 $1 $19 26. Rxa8 Qxa8 (26... Rxa8 27. Nc3 $11) 27. Qxd3 Rb2) 26. Qd3 $11 {[%emt 0:02:58]} Ra2 {[%emt 0:02:38]} (26... Bxe4 $2 27. Qxe2 Qc5 28. Qxa6 (28. Rxg7 Bxg2 29. Kxg2 Kxg7 $11) 28... Bxg2 29. Kxg2 Qxg5 30. Rd7 $18) 27. Qb1 {[%emt 0:03:09]} Re2 {[%emt 0:06:36][%cal Ra8e4]} 28. Qd3 {[%emt 0:00:05]} Qb5 {[%emt 0:00:28] Really sharp!} (28... Bxe4 $2 29. Qxe2 Qc5 30. Qxa6 (30. Rxg7 Bxg2 31. Kxg2 Qd5+ 32. Kg1 Kxg7 $11) 30... Bxg2 31. Kxg2 Qd5+ 32. Kg1 $18) 29. Qxb5 {[%emt 0:02:57]} axb5 {[%emt 0:00:04]} 30. Nd6 {[%emt 0:00:36]} Bxg2 {[%emt 0:01:11]} 31. Kxg2 {[%emt 0:00:01]} b4 {[%emt 0:00:28] ...b3 would now be deadly.} 32. Rb7 {[%emt 0:00:56]} d3 {[%emt 0:00:04]} 33. Rxb4 {[%emt 0:00:30]} Bc3 {[%emt 0:03:16]} 34. Rb7 {[%emt 0:00:32]} (34. Rb3 $1 $11 {keeps the balance.} d2 35. Rxc3 Rexf2+ 36. Rxf2 Rxf2+ (36... d1=N 37. Rxf8+ Kg7 38. Rf7+ Kh8 39. Rc8#) 37. Kxf2) 34... Kg8 $17 {[%emt 0:00:25] White must now prevent ...d2.} 35. Rb3 {[%emt 0:00:33]} d2 $1 {[%emt 0:01:27] Black is much more active.} 36. Ne4 {[%emt 0:00:23][%mdl 8192]} (36. Rxc3 $17 Rexf2+ 37. Rxf2 Rxf2+ (37... d1=B $2 {perishes.} 38. Ne4 $18) 38. Kxf2) 36... Rxe4 $19 {[%emt 0:01:08]} (36... Bd4 $2 37. Rd1 $19) 37. Rxc3 {[%emt 0:00:04] [#]} Rd8 $1 {[%emt 0:00:05] ( -> ...Re1)} 38. Kf3 {[%emt 0:00:36]} Re1 {[%emt 0:00:07] Weighted Error Value: White=0.54/Black=0.13 (very precise) .  Loses game:     	White=1     	---        Missed win:     	---       	Black=1      Mistake:       	White=4     	Black=1      Inaccurate:     	---       	Black=2      OK:         	White=10    	Black=7      Best:        	White=8     	Black=3      Strong:       	---       	Black=2} (38... d1=B+ $2 {too greedy.} 39. Kxe4 Rd7 40. Kf4 $18) ({Not} 38... d1=N 39. Rxd1 Rxd1 40. Kxe4 $14) 0-1

[Event "Reykjavik Open 2024"]
[Site "Reykjavik"]
[Date "2024.03.17"]
[Round "4.11"]
[White "Can, Emre"]
[Black "Sidhant, Mohapatra"]
[Result "1-0"]
[ECO "D11"]
[WhiteElo "2551"]
[BlackElo "2379"]
[Annotator "TA"]
[PlyCount "49"]
[EventDate "2024.03.12"]
[EventCountry "ISL"]
[SourceTitle "playchess.com"]
[Source "ChessBase"]
[SourceQuality "1"]
[TimeControl "40/5400+30:1800+30"]

{[%evp 9,49,0,8,0,0,-3,0,-14,-33,-16,-6,-32,-27,-48,-10,-11,-11,-12,10,16,122,117,115,119,118,130,136,144,140,147,149,146,135,131,127,137,177,98,100,101,380,369]} 1. d4 {[%emt 0:09:07]} d5 {[%emt 0:00:16]} 2. c4 {[%emt 0:00:29]} c6 {[%emt 0:00:22]} 3. Nf3 {[%emt 0:00:23]} Nf6 {[%emt 0:00:10]} 4. Nbd2 {[%emt 0:00:18]} Bf5 {[%emt 0:03:23][%cal Bc8f5,Bf5e4,Be4g6][%mdl 32]} 5. Nh4 {[%emt 0:00:36]} Be4 {[%emt 0:04:30]} 6. f3 {[%emt 0:00:39]} Bg6 {[%emt 0:00:05]} 7. Qb3 {[%emt 0:00:07]} Qc7 {[%emt 0:01:05]} 8. g4 {[%emt 0:00:47] The position is equal.} e6 {[%emt 0:01:07]} 9. e4 {[%emt 0:00:23][%cal Be2e4,Be4e5][%mdl 32]} Be7 {[%emt 0:08:24][%cal Rf6e4] next ...Nxe4! is good for Black.} 10. cxd5 {[%emt 0:23:53]} cxd5 {[%emt 0:00:42]} 11. Nxg6 $1 {[%emt 0:00:17]} hxg6 {[%emt 0:00:05]} 12. e5 $1 {[%emt 0:00:21]} Nfd7 {[%emt 0:02:44] [#] White must now prevent ...Nc6.} 13. f4 $1 {[%emt 0:00:18]} Bh4+ {[%emt 0:06:40]} 14. Kd1 {[%emt 0:03:17]} Bf2 {[%emt 0:08:14]} (14... Nb6 $11 {remains equal.}) 15. Nf3 $16 {[%emt 0:00:18] Strongly threatening h4.} Nc6 {[%emt 0:00:04]} 16. Qc2 {[%emt 0:01:19]} Bh4 {[%emt 0:00:47] [#]} 17. g5 $1 {[%emt 0:06:17]} O-O-O {[%emt 0:00:18]} 18. Rg1 {[%emt 0:03:54] Rg4 would now be deadly.} Rh5 {[%emt 0:03:49]} 19. Be3 {[%emt 0:01:48]} Kb8 {[%emt 0:00:12]} 20. Rc1 {[%emt 0:03:53]} Qb6 {[%emt 0:00:38] Dodges Bb5} 21. Qb3 {[%emt 0:04:52]} Qxb3+ {[%emt 0:01:55]} 22. axb3 {[%emt 0:00:38]} Ne7 {[%emt 0:00:05]} 23. Bd3 {[%emt 0:00:29]} (23. Bd2 $18) 23... Nf5 {[%emt 0:00:07]} 24. Ke2 {[%emt 0:03:56] Bd2 is the strong threat.} Nf8 $2 {[%emt 0:03:25][%mdl 8192]} (24... Nxe3 $16 25. Kxe3 Rdh8) 25. Rg4 {[%emt 0:01:50] Weighted Error Value: White=0.06 (flawless) /Black=0.31.  Loses game:     	---       	Black=1      Mistake:       	White=1     	Black=1      Inaccurate:     	White=1     	Black=1      OK:         	White=5     	Black=9      Best:        	White=3     	Black=1      Strong:       	White=4     	---} 1-0

[Event "Reykjavik Open 2024"]
[Site "Reykjavik"]
[Date "2024.03.17"]
[Round "4.12"]
[White "Garifullina, Leya"]
[Black "Maze, Sebastien"]
[Result "1/2-1/2"]
[ECO "B90"]
[WhiteElo "2413"]
[BlackElo "2551"]
[Annotator "TA"]
[PlyCount "93"]
[EventDate "2024.03.12"]
[EventCountry "ISL"]
[SourceTitle "playchess.com"]
[Source "ChessBase"]
[SourceQuality "1"]
[TimeControl "40/5400+30:1800+30"]

{[%evp 21,93,15,25,20,15,18,12,18,56,38,41,48,137,144,125,115,143,131,124,99,129,125,162,146,136,154,183,132,201,107,101,90,149,127,136,136,139,147,127,147,127,137,140,141,161,150,148,116,112,114,110,118,109,115,130,32,32,31,35,30,37,49,35,11,37,12,2,0,0,0,6,0,0,0]} 1. e4 {[%emt 0:05:06]} c5 {[%emt 0:00:05]} 2. Nf3 {[%emt 0:00:05]} d6 {[%emt 0:00:21]} 3. d4 {[%emt 0:00:10]} cxd4 {[%emt 0:00:05]} 4. Nxd4 {[%emt 0:00:05]} Nf6 {[%emt 0:00:07]} 5. Nc3 {[%emt 0:00:10]} a6 {[%emt 0:00:06]} 6. Be3 {[%emt 0:00:07]} e5 {[%emt 0:00:14]} 7. Nb3 {[%emt 0:00:07]} Be6 {[%emt 0:00:25]} 8. f3 {[%emt 0:00:17]} h5 {[%emt 0:00:10]} 9. Qd2 {[%emt 0:00:10]} Nbd7 {[%emt 0:00:16]} 10. O-O-O {[%emt 0:00:22]} Rc8 {[%emt 0:00:21]} 11. Kb1 {[%emt 0:00:09]} Be7 {[%emt 0:02:35]} 12. Bd3 {[%emt 0:00:52]} Qc7 {[%emt 0:09:12]} 13. h3 {[%emt 0:00:45]} h4 {[%emt 0:00:57]} 14. f4 {[%emt 0:00:08][%cal Bf3f4,Bf4f5][%mdl 32]} Nb6 {[%emt 0:10:23]} 15. Rhe1 {[%emt 0:18:36]} Nc4 {[%emt 0:10:08]} 16. Bxc4 {[%emt 0:00:17]} Qxc4 {[%emt 0:01:48]} (16... Bxc4 $14 17. Qf2 Bxb3 18. axb3 (18. cxb3 b5 $14) 18... b5) 17. f5 $16 {[%emt 0:02:23]} Bd7 {[%emt 0:00:03]} 18. Bg5 {[%emt 0:00:20]} Bc6 {[%emt 0:01:20]} 19. Bxf6 {[%emt 0:05:26]} gxf6 {[%emt 0:00:48]} 20. Qf2 {[%emt 0:01:47]} Rg8 {[%emt 0:10:47]} 21. a3 {[%emt 0:09:41]} Rg3 {[%emt 0:04:35] [#] Pariert Rd3.} 22. Re3 {[%emt 0:06:56]} Rxe3 {[%emt 0:04:09]} 23. Qxe3 {[%emt 0:00:05]} Bd8 {[%emt 0:13:08]} 24. Nd2 {[%emt 0:06:15]} (24. Rxd6 $18 {Schwarz muss nun Nd2 beachten.} Qf1+ 25. Rd1) 24... Qd4 {[%emt 0:05:15]} (24... Qc5 $16 25. Qh6 Ke7) 25. Qxd4 {[%emt 0:00:32]} (25. Qh6 $18) 25... exd4 {[%emt 0:00:01]} 26. Ne2 {[%emt 0:00:40]} Bb6 {[%emt 0:07:29]} ({Besser ist} 26... b5) 27. Nc4 $1 {[%emt 0:02:28][%csl LRb6,LRd4,LRd6]} Bc5 {[%emt 0:00:31]} 28. Nxd4 {[%emt 0:01:52] Weiß steht aktiver.} ({Vergiftet wäre} 28. Rxd4 $2 Bxd4 29. Nxd4 (29. Nxd6+ $2 {verliert.} Kd7 $19) 29... Ke7 (29... Bxe4 $2 30. Nxd6+ Kf8 31. Nxc8 $18) 30. Nxc6+ bxc6 $19) 28... Bxe4 {[%emt 0:01:39][%cal Od6d5] [#]} 29. Nxd6+ {[%emt 0:12:29][%mdl 512]} Bxd6 {[%emt 0:00:06]} 30. Re1 {[%emt 0:00:03]} Kd7 {[%emt 0:00:21]} 31. Rxe4 {[%emt 0:00:04][%mdl 4096] Endspiel. KRB-KRN} Rg8 {[%emt 0:00:09]} 32. Rg4 {[%emt 0:01:35]} ({Bloß nicht} 32. Rxh4 $6 Rxg2 33. c3 Rf2 $14) 32... Rh8 {[%emt 0:00:37]} 33. c4 {[%emt 0:01:25]} Bg3 {[%emt 0:01:51]} 34. Nf3 {[%emt 0:00:21]} Rh5 {[%emt 0:00:43]} 35. Rd4+ {[%emt 0:00:22]} Kc7 {[%emt 0:07:15]} 36. Rd5 {[%emt 0:02:48]} Rh8 {[%emt 0:00:06]} 37. Kc2 {[%emt 0:00:37]} Re8 {[%emt 0:00:07]} 38. Kd1 {[%emt 0:02:29]} (38. Rd4 $16) 38... Re4 $1 $14 {[%emt 0:06:37]} 39. b3 {[%emt 0:05:14]} Re3 {[%emt 0:00:49]} 40. Kc2 {[%emt 0:00:12]} Re2+ {[%emt 0:02:53]} 41. Rd2 {[%emt 0:30:06]} Re3 {[%emt 0:30:24]} 42. Kb2 {[%emt 0:07:35]} a5 {[%emt 0:00:00]} 43. a4 {[%emt 0:00:00]} Be5+ {[%emt 0:00:00] Die Stellung ist ausgeglichen.} 44. Ka3 {[%emt 0:00:00]} Bd6+ {[%emt 0:00:00]} 45. Kb2 {[%emt 0:00:00]} Be5+ {[%emt 0:00:00]} 46. Ka3 {[%emt 0:00:00]} Bd6+ {[%emt 0:00:00]} 47. Kb2 {[%emt 0:00:00] Schwarz rettet sich ins Remis.   Gewichteter Fehlerwert: Weiß=0.14 (sehr präzise) /Schwarz=0.16 (sehr präzise) .  Fehler:       	Weiß=3     	Schwarz=3     Ungenau:       	---       	Schwarz=3     OK:         	Weiß=9     	Schwarz=16    Bester:       	Weiß=4     	---        Stark:        	---       	Schwarz=1} 1/2-1/2